[Event "Late-Titled-Tuesday-Blitz-June-04-2024"]
[Site "Chess.com"]
[Date "2024.06.04"]
[Round "8"]
[White "KChor05"]
[Black "NoSpaghettiForYou"]
[Result "0-1"]
[WhiteElo "2629"]
[BlackElo "2561"]
[TimeControl "180+1"]
[EndTime "15:26:28 PDT"]
[Termination "NoSpaghettiForYou won by resignation"]

1. d4 {[%clk 0:03:00.9]} 1... Nf6 {[%clk 0:02:59.8]} 2. c4 {[%clk 0:03:00.5]}
2... c5 {[%clk 0:02:59.9]} 3. d5 {[%clk 0:02:52.4]} 3... b5 {[%clk 0:02:59.7]}
4. Qc2 {[%clk 0:02:52]} 4... b4 {[%clk 0:02:59]} 5. e4 {[%clk 0:02:45.5]} 5...
d6 {[%clk 0:02:56.1]} 6. g3 {[%clk 0:02:29.8]} 6... g6 {[%clk 0:02:55.3]} 7. Bg2
{[%clk 0:02:25.3]} 7... Bg7 {[%clk 0:02:55.3]} 8. Nf3 {[%clk 0:02:10]} 8... O-O
{[%clk 0:02:53.8]} 9. O-O {[%clk 0:02:10.2]} 9... a5 {[%clk 0:02:47.1]} 10. Nbd2
{[%clk 0:02:03.5]} 10... e5 {[%clk 0:02:29.8]} 11. dxe6 {[%clk 0:01:47.2]} 11...
Bxe6 {[%clk 0:02:29.5]} 12. e5 {[%clk 0:01:43.3]} 12... dxe5 {[%clk 0:02:29.5]}
13. Nxe5 {[%clk 0:01:29.6]} 13... Ra6 {[%clk 0:02:29.7]} 14. Nb3 {[%clk
0:01:28.3]} 14... Nfd7 {[%clk 0:02:22]} 15. Nxd7 {[%clk 0:01:15.6]} 15... Nxd7
{[%clk 0:02:22.9]} 16. Be3 {[%clk 0:01:14.5]} 16... Qc7 {[%clk 0:02:19.6]} 17.
Rad1 {[%clk 0:01:11.5]} 17... a4 {[%clk 0:02:17.8]} 18. Nd2 {[%clk 0:00:45.8]}
18... f5 {[%clk 0:02:01.4]} 19. Nf3 {[%clk 0:00:40.2]} 19... Nf6 {[%clk
0:01:50.8]} 20. Bf4 {[%clk 0:00:37.4]} 20... Qf7 {[%clk 0:01:49.4]} 21. Ng5
{[%clk 0:00:35.3]} 21... Qa7 {[%clk 0:01:37.9]} 22. Bd6 {[%clk 0:00:30.2]} 22...
Re8 {[%clk 0:01:33.2]} 23. Rfe1 {[%clk 0:00:29.3]} 23... Bf7 {[%clk 0:01:27]}
24. Nxf7 {[%clk 0:00:27]} 24... Rxe1+ {[%clk 0:01:26.6]} 25. Rxe1 {[%clk
0:00:26.7]} 25... Qxf7 {[%clk 0:01:25.2]} 26. Bxc5 {[%clk 0:00:26.8]} 26... Re6
{[%clk 0:01:09.8]} 27. Rd1 {[%clk 0:00:24.5]} 27... h5 {[%clk 0:01:06.8]} 28.
Bxb4 {[%clk 0:00:23.9]} 28... h4 {[%clk 0:01:07.3]} 29. Bc3 {[%clk 0:00:20.1]}
29... Ng4 {[%clk 0:01:00.9]} 30. Bd5 {[%clk 0:00:18.7]} 30... hxg3 {[%clk
0:00:59.6]} 31. hxg3 {[%clk 0:00:18.9]} 31... Bxc3 {[%clk 0:00:57.8]} 32. Qxc3
{[%clk 0:00:18.8]} 32... f4 {[%clk 0:00:54.2]} 33. Re1 {[%clk 0:00:15.5]} 33...
fxg3 {[%clk 0:00:51.7]} 34. Bxe6 {[%clk 0:00:13.1]} 34... gxf2+ {[%clk
0:00:51.7]} 35. Kg2 {[%clk 0:00:11.7]} 35... f1=Q+ {[%clk 0:00:40.9]} 36. Rxf1
{[%clk 0:00:12.1]} 36... Qxe6 {[%clk 0:00:41.4]} 37. Kg3 {[%clk 0:00:07.7]}
37... Ne3 {[%clk 0:00:40]} 38. Rf4 {[%clk 0:00:07.2]} 38... Nf5+ {[%clk
0:00:38.9]} 39. Kf2 {[%clk 0:00:06.7]} 39... Qd6 {[%clk 0:00:35.7]} 40. Qf3
{[%clk 0:00:02.9]} 40... Qd2+ {[%clk 0:00:35.2]} 41. Kg1 {[%clk 0:00:03.4]}
41... Qe1+ {[%clk 0:00:34.6]} 42. Kg2 {[%clk 0:00:03.7]} 42... Ne3+ {[%clk
0:00:32.1]} 43. Kh3 {[%clk 0:00:03.7]} 43... Nf5 {[%clk 0:00:30.7]} 44. Kg2
{[%clk 0:00:03.7]} 44... Nh4+ {[%clk 0:00:30.6]} 45. Kh3 {[%clk 0:00:04]} 45...
Nxf3 {[%clk 0:00:30.6]} 46. Rxf3 {[%clk 0:00:04.2]} 46... Qe6+ {[%clk
0:00:30.8]} 47. Kg2 {[%clk 0:00:04.4]} 47... Qxc4 {[%clk 0:00:31.5]} 0-1

[Event "Late-Titled-Tuesday-Blitz-June-04-2024"]
[Site "Chess.com"]
[Date "2024.06.04"]
[Round "8"]
[White "whiteglovethief"]
[Black "Alphafischer2019"]
[Result "0-1"]
[WhiteElo "2527"]
[BlackElo "2633"]
[TimeControl "180+1"]
[EndTime "15:26:28 PDT"]
[Termination "Alphafischer2019 won by resignation"]

1. d4 {[%clk 0:03:00.9]} 1... Nf6 {[%clk 0:02:58.5]} 2. c4 {[%clk 0:03:01.1]}
2... c5 {[%clk 0:02:56.8]} 3. d5 {[%clk 0:03:00.4]} 3... b5 {[%clk 0:02:57.3]}
4. cxb5 {[%clk 0:03:00.3]} 4... a6 {[%clk 0:02:57.9]} 5. Nc3 {[%clk 0:02:59.8]}
5... axb5 {[%clk 0:02:57.6]} 6. a4 {[%clk 0:02:59.2]} 6... b4 {[%clk 0:02:55.6]}
7. Nb5 {[%clk 0:02:59.3]} 7... d6 {[%clk 0:02:53.7]} 8. e4 {[%clk 0:02:58.8]}
8... Nbd7 {[%clk 0:02:48.1]} 9. Nf3 {[%clk 0:02:56.6]} 9... g6 {[%clk
0:02:47.8]} 10. Bc4 {[%clk 0:02:53.9]} 10... Bg7 {[%clk 0:02:47.9]} 11. Qe2
{[%clk 0:02:53.7]} 11... O-O {[%clk 0:02:47.7]} 12. O-O {[%clk 0:02:53.7]} 12...
Ng4 {[%clk 0:02:46.1]} 13. h3 {[%clk 0:02:52.9]} 13... Nge5 {[%clk 0:02:45.9]}
14. Nxe5 {[%clk 0:02:52.4]} 14... Nxe5 {[%clk 0:02:46]} 15. Ra2 {[%clk
0:02:40.1]} 15... Ba6 {[%clk 0:02:42.7]} 16. b3 {[%clk 0:02:39.1]} 16... Re8
{[%clk 0:02:30.9]} 17. Bg5 {[%clk 0:02:37.7]} 17... h6 {[%clk 0:02:30]} 18. Be3
{[%clk 0:02:35.8]} 18... Nxc4 {[%clk 0:02:27.6]} 19. bxc4 {[%clk 0:02:27.1]}
19... e6 {[%clk 0:02:17.4]} 20. dxe6 {[%clk 0:02:19.4]} 20... Rxe6 {[%clk
0:02:15.2]} 21. Qd3 {[%clk 0:02:11.2]} 21... Qe7 {[%clk 0:02:12.3]} 22. Rd2
{[%clk 0:02:06.8]} 22... Rxe4 {[%clk 0:02:07.2]} 23. Qxd6 {[%clk 0:02:04.2]}
23... Bf8 {[%clk 0:01:48.4]} 24. Bxc5 {[%clk 0:01:50.9]} 24... Qg5 {[%clk
0:01:07.7]} 25. Qd5 {[%clk 0:01:50.6]} 25... Qxd5 {[%clk 0:01:03.4]} 26. Rxd5
{[%clk 0:01:51.5]} 26... Bb7 {[%clk 0:01:03.7]} 27. Bxf8 {[%clk 0:01:17.9]}
27... Bxd5 {[%clk 0:01:03.5]} 28. cxd5 {[%clk 0:01:05]} 28... Kxf8 {[%clk
0:01:02.1]} 29. d6 {[%clk 0:01:02.3]} 29... b3 {[%clk 0:00:55.4]} 30. d7 {[%clk
0:00:54.6]} 30... Ke7 {[%clk 0:00:53.8]} 31. Rd1 {[%clk 0:00:52]} 31... Rd8
{[%clk 0:00:52.6]} 32. Nc3 {[%clk 0:00:45.8]} 32... Re5 {[%clk 0:00:41.7]} 33.
f4 {[%clk 0:00:33.8]} 33... Rc5 {[%clk 0:00:35.2]} 34. Ne4 {[%clk 0:00:21.1]}
34... Rc6 {[%clk 0:00:28.4]} 35. Nd2 {[%clk 0:00:18.7]} 35... b2 {[%clk
0:00:20.1]} 36. Rb1 {[%clk 0:00:18.3]} 36... Rc1+ {[%clk 0:00:20.5]} 37. Kf2
{[%clk 0:00:17.2]} 37... Rxb1 {[%clk 0:00:20.8]} 38. Nxb1 {[%clk 0:00:17]} 38...
Rxd7 {[%clk 0:00:21.7]} 39. Ke2 {[%clk 0:00:16.8]} 39... Rd4 {[%clk 0:00:22.2]}
40. g3 {[%clk 0:00:13.2]} 40... Rxa4 {[%clk 0:00:22.1]} 41. Kd3 {[%clk
0:00:13.5]} 41... Rb4 {[%clk 0:00:19.2]} 42. Kc3 {[%clk 0:00:13.7]} 42... Rb8
{[%clk 0:00:19.8]} 0-1

[Event "Late-Titled-Tuesday-Blitz-June-04-2024"]
[Site "Chess.com"]
[Date "2024.06.04"]
[Round "8"]
[White "duone"]
[Black "The_Straightforward_Rook"]
[Result "0-1"]
[WhiteElo "2398"]
[BlackElo "2544"]
[TimeControl "180+1"]
[EndTime "15:26:28 PDT"]
[Termination "The_Straightforward_Rook won by checkmate"]

1. e4 {[%clk 0:03:00.9]} 1... e6 {[%clk 0:02:58.2]} 2. d4 {[%clk 0:02:58.3]}
2... d5 {[%clk 0:02:58.3]} 3. Bd3 {[%clk 0:02:58.7]} 3... c5 {[%clk 0:02:57.2]}
4. Nf3 {[%clk 0:02:51.4]} 4... dxe4 {[%clk 0:02:54.5]} 5. Bxe4 {[%clk
0:02:50.9]} 5... Nf6 {[%clk 0:02:55.2]} 6. Bd3 {[%clk 0:02:47.3]} 6... cxd4
{[%clk 0:02:54.2]} 7. O-O {[%clk 0:02:47.4]} 7... Nc6 {[%clk 0:02:54.1]} 8. Bb5
{[%clk 0:02:41.7]} 8... Bc5 {[%clk 0:02:50.7]} 9. Nbd2 {[%clk 0:02:24.6]} 9...
O-O {[%clk 0:02:45]} 10. Nb3 {[%clk 0:02:24.8]} 10... Bb6 {[%clk 0:02:45.4]} 11.
Bxc6 {[%clk 0:02:25.1]} 11... bxc6 {[%clk 0:02:45.3]} 12. Nbxd4 {[%clk
0:02:25.7]} 12... Bb7 {[%clk 0:02:38.8]} 13. Be3 {[%clk 0:02:22.3]} 13... Nd5
{[%clk 0:02:37.8]} 14. Bg5 {[%clk 0:02:21.5]} 14... Qc7 {[%clk 0:02:33.9]} 15.
c4 {[%clk 0:02:21.2]} 15... Nf4 {[%clk 0:02:28.3]} 16. Qd2 {[%clk 0:02:08.9]}
16... e5 {[%clk 0:02:26.1]} 17. Nf5 {[%clk 0:02:05.7]} 17... f6 {[%clk
0:02:15.5]} 18. Bxf4 {[%clk 0:02:02.1]} 18... exf4 {[%clk 0:02:16.4]} 19. Rfe1
{[%clk 0:02:02]} 19... Rfe8 {[%clk 0:02:09]} 20. Rxe8+ {[%clk 0:02:00.9]} 20...
Rxe8 {[%clk 0:02:08.5]} 21. Re1 {[%clk 0:02:01.4]} 21... Rxe1+ {[%clk
0:01:59.7]} 22. Qxe1 {[%clk 0:02:01.3]} 22... Kf7 {[%clk 0:01:59.6]} 23. Qe4
{[%clk 0:01:53.3]} 23... g6 {[%clk 0:01:49.6]} 24. c5 {[%clk 0:01:38.5]} 24...
gxf5 {[%clk 0:01:31.3]} 25. Qxf5 {[%clk 0:01:31.1]} 25... Ba5 {[%clk 0:01:26]}
26. Qxh7+ {[%clk 0:01:27.3]} 26... Ke8 {[%clk 0:01:23.4]} 27. Qg8+ {[%clk
0:01:22.7]} 27... Kd7 {[%clk 0:01:23.3]} 28. Qf7+ {[%clk 0:01:22.5]} 28... Kc8
{[%clk 0:01:23.1]} 29. Qxf6 {[%clk 0:01:22]} 29... Kb8 {[%clk 0:01:20]} 30. h3
{[%clk 0:01:20.7]} 30... Bc8 {[%clk 0:01:16.6]} 31. Nd4 {[%clk 0:01:14.9]} 31...
Bd7 {[%clk 0:01:16.8]} 32. a3 {[%clk 0:01:13.2]} 32... Qd8 {[%clk 0:01:13.6]}
33. Qxf4+ {[%clk 0:01:11.1]} 33... Bc7 {[%clk 0:01:13.1]} 34. Qe3 {[%clk
0:01:11]} 34... Qf6 {[%clk 0:01:09.5]} 35. b4 {[%clk 0:01:08.4]} 35... Be5
{[%clk 0:01:08.3]} 36. Nf3 {[%clk 0:01:07.6]} 36... Bf4 {[%clk 0:01:06.6]} 37.
Qe1 {[%clk 0:01:00.5]} 37... Bc7 {[%clk 0:01:04.6]} 38. Qd1 {[%clk 0:00:56.7]}
38... Be6 {[%clk 0:01:00]} 39. Qd4 {[%clk 0:00:55.9]} 39... Qg6 {[%clk
0:00:56.5]} 40. Ne5 {[%clk 0:00:34.6]} 40... Qb1+ {[%clk 0:00:47.3]} 41. Kh2
{[%clk 0:00:34.9]} 41... Bd5 {[%clk 0:00:47]} 42. f4 {[%clk 0:00:32.9]} 42...
Qf1 {[%clk 0:00:36.5]} 43. Qd2 {[%clk 0:00:29.7]} 43... Kb7 {[%clk 0:00:31.8]}
44. Kg3 {[%clk 0:00:17.8]} 44... a6 {[%clk 0:00:27.2]} 45. h4 {[%clk 0:00:18]}
45... Qh1 {[%clk 0:00:19.6]} 46. Qe2 {[%clk 0:00:16.5]} 46... Bd8 {[%clk
0:00:18.6]} 47. Qg4 {[%clk 0:00:12.6]} 47... Qxg2# {[%clk 0:00:18.1]} 0-1

[Event "Late-Titled-Tuesday-Blitz-June-04-2024"]
[Site "Chess.com"]
[Date "2024.06.04"]
[Round "8"]
[White "Engima32"]
[Black "Roedor"]
[Result "1-0"]
[WhiteElo "2475"]
[BlackElo "2364"]
[TimeControl "180+1"]
[EndTime "15:26:34 PDT"]
[Termination "Engima32 won by resignation"]

1. d4 {[%clk 0:02:56.2]} 1... Nf6 {[%clk 0:02:59.6]} 2. Nf3 {[%clk 0:02:55.8]}
2... g6 {[%clk 0:02:59.9]} 3. g3 {[%clk 0:02:53.3]} 3... Bg7 {[%clk 0:02:59.7]}
4. Bg2 {[%clk 0:02:53.8]} 4... O-O {[%clk 0:03:00.3]} 5. O-O {[%clk 0:02:54.5]}
5... d5 {[%clk 0:02:59]} 6. c4 {[%clk 0:02:54.2]} 6... Nc6 {[%clk 0:02:58.8]} 7.
cxd5 {[%clk 0:02:52.3]} 7... Nxd5 {[%clk 0:02:59.7]} 8. Re1 {[%clk 0:02:51.7]}
8... Bg4 {[%clk 0:02:56.5]} 9. Nc3 {[%clk 0:02:50.8]} 9... Nb6 {[%clk
0:02:56.3]} 10. e3 {[%clk 0:02:50.9]} 10... e5 {[%clk 0:02:55.9]} 11. d5 {[%clk
0:02:47.5]} 11... e4 {[%clk 0:02:51.4]} 12. dxc6 {[%clk 0:02:39]} 12... Qxd1
{[%clk 0:02:49.4]} 13. Rxd1 {[%clk 0:02:37.2]} 13... exf3 {[%clk 0:02:48.1]} 14.
cxb7 {[%clk 0:02:26.8]} 14... Rab8 {[%clk 0:02:25.4]} 15. Bf1 {[%clk 0:02:19.3]}
15... Rxb7 {[%clk 0:02:25.2]} 16. Bd2 {[%clk 0:02:12.9]} 16... Be6 {[%clk
0:02:22]} 17. Rac1 {[%clk 0:02:10.9]} 17... Nc4 {[%clk 0:02:20.5]} 18. b3 {[%clk
0:02:09.9]} 18... Nb2 {[%clk 0:02:16.2]} 19. Re1 {[%clk 0:02:08]} 19... Rd8
{[%clk 0:02:16.7]} 20. Nb1 {[%clk 0:01:54.3]} 20... Nd3 {[%clk 0:02:10.3]} 21.
Bxd3 {[%clk 0:01:49.7]} 21... Rxd3 {[%clk 0:02:11.2]} 22. Bc3 {[%clk 0:01:46.7]}
22... Bxc3 {[%clk 0:01:40.5]} 23. Nxc3 {[%clk 0:01:46.3]} 23... Rb8 {[%clk
0:01:40.8]} 24. Red1 {[%clk 0:01:45.2]} 24... Rbd8 {[%clk 0:01:40.5]} 25. Kf1
{[%clk 0:01:42.8]} 25... f5 {[%clk 0:01:35.7]} 26. Ke1 {[%clk 0:01:42.2]} 26...
Kf7 {[%clk 0:01:28.9]} 27. Rxd3 {[%clk 0:01:41.5]} 27... Rxd3 {[%clk 0:01:29.8]}
28. Nb5 {[%clk 0:01:39.4]} 28... Kf6 {[%clk 0:01:02.5]} 29. Nxa7 {[%clk
0:01:05.1]} 29... h5 {[%clk 0:00:46]} 30. Nc6 {[%clk 0:01:04.3]} 30... h4 {[%clk
0:00:42]} 31. Nd4 {[%clk 0:01:03.6]} 31... Bc8 {[%clk 0:00:37.8]} 32. Rc6+
{[%clk 0:00:58.4]} 32... Kg5 {[%clk 0:00:36.5]} 33. Rxc7 {[%clk 0:00:56.7]}
33... Ba6 {[%clk 0:00:32]} 34. Nxf3+ {[%clk 0:00:44.6]} 34... Kg4 {[%clk
0:00:29.5]} 35. Nd4 {[%clk 0:00:44.9]} 35... h3 {[%clk 0:00:26]} 36. Rc6 {[%clk
0:00:41]} 36... Bb7 {[%clk 0:00:19.4]} 37. Rxg6+ {[%clk 0:00:39.8]} 37... Kh5
{[%clk 0:00:19.9]} 38. Rg7 {[%clk 0:00:35.8]} 38... Be4 {[%clk 0:00:19.3]} 39.
Rc7 {[%clk 0:00:28.9]} 39... Kg4 {[%clk 0:00:18.3]} 40. a4 {[%clk 0:00:26.7]}
40... Bd5 {[%clk 0:00:17.3]} 41. Ke2 {[%clk 0:00:17.1]} 41... Be4 {[%clk
0:00:15.9]} 42. f3+ {[%clk 0:00:16.8]} 42... Kg5 {[%clk 0:00:14.2]} 43. fxe4
{[%clk 0:00:17.2]} 43... fxe4 {[%clk 0:00:14.6]} 44. a5 {[%clk 0:00:17.4]} 1-0

[Event "Late-Titled-Tuesday-Blitz-June-04-2024"]
[Site "Chess.com"]
[Date "2024.06.04"]
[Round "8"]
[White "mortngabriel"]
[Black "rhungaski"]
[Result "0-1"]
[WhiteElo "2487"]
[BlackElo "2627"]
[TimeControl "180+1"]
[EndTime "15:26:35 PDT"]
[Termination "rhungaski won by resignation"]

1. e4 {[%clk 0:03:00.9]} 1... e6 {[%clk 0:02:58.1]} 2. d4 {[%clk 0:03:00.7]}
2... d5 {[%clk 0:02:58.3]} 3. Nc3 {[%clk 0:03:01.5]} 3... Bb4 {[%clk 0:02:58.2]}
4. Ne2 {[%clk 0:03:01.3]} 4... dxe4 {[%clk 0:02:58.3]} 5. a3 {[%clk 0:03:01]}
5... Be7 {[%clk 0:02:59]} 6. Nxe4 {[%clk 0:03:00.9]} 6... Nf6 {[%clk 0:02:59.7]}
7. Nxf6+ {[%clk 0:02:58.2]} 7... Bxf6 {[%clk 0:03:00.6]} 8. Be3 {[%clk
0:02:56.4]} 8... Nc6 {[%clk 0:03:00.9]} 9. Qd2 {[%clk 0:02:54.5]} 9... b6 {[%clk
0:03:00.1]} 10. O-O-O {[%clk 0:02:54]} 10... Bb7 {[%clk 0:03:00.7]} 11. Nc3
{[%clk 0:02:41.9]} 11... Qd7 {[%clk 0:02:56.6]} 12. d5 {[%clk 0:02:37.3]} 12...
exd5 {[%clk 0:02:34.1]} 13. Nxd5 {[%clk 0:02:36.6]} 13... O-O-O {[%clk
0:02:34.3]} 14. Nxf6 {[%clk 0:02:35]} 14... Qxd2+ {[%clk 0:02:34.4]} 15. Rxd2
{[%clk 0:02:35.3]} 15... Rxd2 {[%clk 0:02:32.6]} 16. Bxd2 {[%clk 0:02:35]} 16...
gxf6 {[%clk 0:02:33]} 17. Bc3 {[%clk 0:02:34.5]} 17... Ne5 {[%clk 0:02:31.3]}
18. f4 {[%clk 0:02:07.8]} 18... Ng4 {[%clk 0:02:30.9]} 19. Be2 {[%clk
0:01:52.5]} 19... Ne3 {[%clk 0:02:30.4]} 20. Bxf6 {[%clk 0:01:42.8]} 20... Rg8
{[%clk 0:02:30.8]} 21. Bd3 {[%clk 0:01:33.8]} 21... h5 {[%clk 0:02:26.6]} 22.
Re1 {[%clk 0:01:06]} 22... Nxg2 {[%clk 0:02:26.5]} 23. Re7 {[%clk 0:01:02.5]}
23... Nxf4 {[%clk 0:02:19.6]} 24. Be5 {[%clk 0:00:39.2]} 24... Rg1+ {[%clk
0:02:12.2]} 25. Kd2 {[%clk 0:00:38.9]} 25... Rg2+ {[%clk 0:02:12.9]} 26. Ke1
{[%clk 0:00:36.7]} 26... Nxd3+ {[%clk 0:01:23]} 27. cxd3 {[%clk 0:00:37.6]}
27... Bf3 {[%clk 0:00:52.3]} 28. Rxc7+ {[%clk 0:00:34.2]} 28... Kd8 {[%clk
0:00:52.8]} 29. Rxf7 {[%clk 0:00:30.4]} 29... Re2+ {[%clk 0:00:52.4]} 30. Kf1
{[%clk 0:00:30.2]} 30... Bg4 {[%clk 0:00:53]} 31. Bg3 {[%clk 0:00:19.2]} 31...
Rxb2 {[%clk 0:00:45.4]} 32. Rxa7 {[%clk 0:00:18.7]} 32... Be2+ {[%clk
0:00:45.5]} 33. Ke1 {[%clk 0:00:17.4]} 33... Bxd3 {[%clk 0:00:46.4]} 34. Rg7
{[%clk 0:00:13.8]} 34... b5 {[%clk 0:00:39.7]} 35. Rg5 {[%clk 0:00:10.8]} 35...
Be2 {[%clk 0:00:35.3]} 36. Rd5+ {[%clk 0:00:08.8]} 36... Kc8 {[%clk 0:00:34.6]}
37. Rd2 {[%clk 0:00:09.4]} 37... Rxd2 {[%clk 0:00:31.7]} 38. Kxd2 {[%clk
0:00:10.3]} 38... Bg4 {[%clk 0:00:31.6]} 39. Kc3 {[%clk 0:00:10.7]} 39... Kb7
{[%clk 0:00:31.9]} 40. Kb4 {[%clk 0:00:11.4]} 40... Kc6 {[%clk 0:00:32.3]} 41.
Bf4 {[%clk 0:00:12]} 41... Bh3 {[%clk 0:00:31.8]} 42. a4 {[%clk 0:00:11.8]}
42... bxa4 {[%clk 0:00:31.7]} 43. Kxa4 {[%clk 0:00:12.7]} 43... Kd5 {[%clk
0:00:32.6]} 44. Kb3 {[%clk 0:00:12.9]} 44... Ke4 {[%clk 0:00:33.5]} 45. Kc2
{[%clk 0:00:13.4]} 45... Kxf4 {[%clk 0:00:33.7]} 46. Kd2 {[%clk 0:00:13.3]}
46... Kf3 {[%clk 0:00:33.5]} 47. Ke1 {[%clk 0:00:13.5]} 47... Kg2 {[%clk
0:00:33.3]} 48. Ke2 {[%clk 0:00:13.7]} 48... Bg4+ {[%clk 0:00:31.8]} 49. Ke1
{[%clk 0:00:13.7]} 49... h4 {[%clk 0:00:30.3]} 50. Kd2 {[%clk 0:00:13]} 50...
Kxh2 {[%clk 0:00:28.4]} 51. Ke3 {[%clk 0:00:13]} 51... Kg2 {[%clk 0:00:28.7]}
0-1

[Event "Late-Titled-Tuesday-Blitz-June-04-2024"]
[Site "Chess.com"]
[Date "2024.06.04"]
[Round "8"]
[White "Cuchulin"]
[Black "Bkmzzzzz"]
[Result "0-1"]
[WhiteElo "2278"]
[BlackElo "2423"]
[TimeControl "180+1"]
[EndTime "15:26:35 PDT"]
[Termination "Bkmzzzzz won by resignation"]

1. d4 {[%clk 0:03:00.9]} 1... d5 {[%clk 0:03:00]} 2. Bf4 {[%clk 0:03:00.6]} 2...
Nf6 {[%clk 0:02:53.3]} 3. e3 {[%clk 0:03:00.6]} 3... e6 {[%clk 0:02:51.4]} 4.
Nf3 {[%clk 0:02:59.9]} 4... Bd6 {[%clk 0:02:51.8]} 5. Ne5 {[%clk 0:02:59.5]}
5... O-O {[%clk 0:02:48.4]} 6. Nd2 {[%clk 0:02:59.5]} 6... c5 {[%clk 0:02:48.6]}
7. Be2 {[%clk 0:02:58.8]} 7... Nc6 {[%clk 0:02:48.3]} 8. c3 {[%clk 0:02:58.9]}
8... Qc7 {[%clk 0:02:44.4]} 9. Nxc6 {[%clk 0:02:54.9]} 9... Bxf4 {[%clk
0:02:40.3]} 10. exf4 {[%clk 0:02:53.9]} 10... Qxc6 {[%clk 0:02:36.6]} 11. dxc5
{[%clk 0:02:52.5]} 11... Qxc5 {[%clk 0:02:37.5]} 12. O-O {[%clk 0:02:51.2]}
12... b5 {[%clk 0:02:34.9]} 13. g3 {[%clk 0:02:50.4]} 13... b4 {[%clk
0:02:32.7]} 14. cxb4 {[%clk 0:02:47.6]} 14... Qxb4 {[%clk 0:02:33.6]} 15. b3
{[%clk 0:02:46.6]} 15... a5 {[%clk 0:02:32.2]} 16. Nf3 {[%clk 0:02:44.5]} 16...
Ne4 {[%clk 0:02:29.1]} 17. Bd3 {[%clk 0:02:37.2]} 17... Ba6 {[%clk 0:02:28.1]}
18. Ne5 {[%clk 0:02:28.2]} 18... Rfc8 {[%clk 0:02:13]} 19. Bxe4 {[%clk
0:02:19.1]} 19... Qxe4 {[%clk 0:01:54.6]} 20. Re1 {[%clk 0:02:10.3]} 20... Qb4
{[%clk 0:01:47.9]} 21. Qh5 {[%clk 0:02:09.2]} 21... Rc7 {[%clk 0:01:37.5]} 22.
f5 {[%clk 0:02:05.3]} 22... f6 {[%clk 0:01:25.2]} 23. Ng4 {[%clk 0:01:58.9]}
23... e5 {[%clk 0:01:21.9]} 24. Qh4 {[%clk 0:01:54.6]} 24... Qd6 {[%clk
0:01:16.7]} 25. Rac1 {[%clk 0:01:51.9]} 25... Rac8 {[%clk 0:01:15.5]} 26. Rxc7
{[%clk 0:01:49.9]} 26... Rxc7 {[%clk 0:01:16.4]} 27. Ne3 {[%clk 0:01:42.7]}
27... d4 {[%clk 0:01:10.8]} 28. Nc4 {[%clk 0:01:25.7]} 28... Bxc4 {[%clk
0:01:10.2]} 29. bxc4 {[%clk 0:01:24.6]} 29... Rxc4 {[%clk 0:01:11.1]} 30. Qe4
{[%clk 0:01:24.1]} 30... Qc6 {[%clk 0:00:40.6]} 31. Qb1 {[%clk 0:01:01.5]} 31...
Qc8 {[%clk 0:00:34.5]} 32. Qb5 {[%clk 0:00:57.1]} 32... Rc5 {[%clk 0:00:23.8]}
33. Qb3+ {[%clk 0:00:48.5]} 33... Kh8 {[%clk 0:00:24]} 34. Qf7 {[%clk
0:00:42.8]} 34... h6 {[%clk 0:00:22.3]} 35. Rb1 {[%clk 0:00:39]} 35... Rc1+
{[%clk 0:00:19.8]} 36. Rxc1 {[%clk 0:00:39]} 36... Qxc1+ {[%clk 0:00:20.7]} 37.
Kg2 {[%clk 0:00:39]} 37... Qc6+ {[%clk 0:00:21]} 38. f3 {[%clk 0:00:31.2]} 38...
Qc8 {[%clk 0:00:19.9]} 39. Qd5 {[%clk 0:00:29.2]} 39... Qxf5 {[%clk 0:00:19.2]}
40. Qxa5 {[%clk 0:00:27.9]} 40... Kh7 {[%clk 0:00:18.3]} 41. a4 {[%clk
0:00:26.2]} 41... Qc2+ {[%clk 0:00:18.1]} 42. Kh3 {[%clk 0:00:24.2]} 42... d3
{[%clk 0:00:18.2]} 43. Qc7 {[%clk 0:00:04.4]} 43... Qxc7 {[%clk 0:00:17.3]} 0-1

[Event "Late-Titled-Tuesday-Blitz-June-04-2024"]
[Site "Chess.com"]
[Date "2024.06.04"]
[Round "8"]
[White "Kostukov_Alex"]
[Black "simaopdias"]
[Result "1/2-1/2"]
[WhiteElo "2302"]
[BlackElo "2221"]
[TimeControl "180+1"]
[EndTime "15:26:35 PDT"]
[Termination "Game drawn by repetition"]

1. g3 {[%clk 0:02:58.9]} 1... Nf6 {[%clk 0:02:59.2]} 2. Bg2 {[%clk 0:02:58.4]}
2... e6 {[%clk 0:03:00.1]} 3. d3 {[%clk 0:02:57.8]} 3... Be7 {[%clk 0:03:01]} 4.
e4 {[%clk 0:02:58.2]} 4... O-O {[%clk 0:03:01.9]} 5. f4 {[%clk 0:02:57.8]} 5...
d5 {[%clk 0:03:01.4]} 6. e5 {[%clk 0:02:56.8]} 6... Nfd7 {[%clk 0:03:01.9]} 7.
Nf3 {[%clk 0:02:57.4]} 7... b6 {[%clk 0:03:02.4]} 8. O-O {[%clk 0:02:57.8]} 8...
Bb7 {[%clk 0:03:03]} 9. c4 {[%clk 0:02:58.3]} 9... c5 {[%clk 0:03:03.4]} 10. Nc3
{[%clk 0:02:57.4]} 10... dxc4 {[%clk 0:03:03.6]} 11. dxc4 {[%clk 0:02:58.3]}
11... Nc6 {[%clk 0:02:59.6]} 12. Be3 {[%clk 0:02:52.2]} 12... a6 {[%clk
0:02:58.3]} 13. h4 {[%clk 0:02:49.1]} 13... Qc7 {[%clk 0:02:57.6]} 14. Ng5
{[%clk 0:02:47.5]} 14... g6 {[%clk 0:02:51.4]} 15. Nge4 {[%clk 0:02:39.1]} 15...
Rfd8 {[%clk 0:02:49.6]} 16. Qg4 {[%clk 0:02:33.8]} 16... h5 {[%clk 0:02:40.7]}
17. Qe2 {[%clk 0:02:27.8]} 17... Nd4 {[%clk 0:02:31.4]} 18. Bxd4 {[%clk
0:02:08.6]} 18... cxd4 {[%clk 0:02:30.9]} 19. Nd1 {[%clk 0:01:48.2]} 19... d3
{[%clk 0:02:20.8]} 20. Qxd3 {[%clk 0:01:38.7]} 20... Nc5 {[%clk 0:02:12.4]} 21.
Qc2 {[%clk 0:01:32.7]} 21... Nxe4 {[%clk 0:02:01.8]} 22. Bxe4 {[%clk 0:01:33.6]}
22... Bxe4 {[%clk 0:01:56.1]} 23. Qxe4 {[%clk 0:01:34.5]} 23... Rd4 {[%clk
0:01:54.7]} 24. Qxa8+ {[%clk 0:01:32.6]} 24... Kg7 {[%clk 0:01:54.8]} 25. b3
{[%clk 0:01:01.4]} 25... b5 {[%clk 0:01:51.4]} 26. cxb5 {[%clk 0:00:55.3]} 26...
Rd2 {[%clk 0:01:36.7]} 27. Qc6 {[%clk 0:00:18.1]} 27... Qa7+ {[%clk 0:01:31.2]}
28. b6 {[%clk 0:00:18.1]} 28... Qb8 {[%clk 0:01:21.2]} 29. Qc7 {[%clk
0:00:17.7]} 29... Qe8 {[%clk 0:01:14.8]} 30. b7 {[%clk 0:00:16]} 30... Qb5
{[%clk 0:01:10.2]} 31. b8=Q {[%clk 0:00:13.1]} 31... Bc5+ {[%clk 0:00:56.8]} 32.
Nf2 {[%clk 0:00:12.8]} 32... Qd3 {[%clk 0:00:46.9]} 33. Kg2 {[%clk 0:00:03.7]}
33... Qe4+ {[%clk 0:00:39.2]} 34. Kh3 {[%clk 0:00:03]} 34... Bxf2 {[%clk
0:00:28.1]} 35. Qcc8 {[%clk 0:00:03]} 35... Qf5+ {[%clk 0:00:23.4]} 36. Kg2
{[%clk 0:00:01.5]} 36... Qe4+ {[%clk 0:00:15.1]} 37. Kh3 {[%clk 0:00:01.9]}
37... Qf5+ {[%clk 0:00:14.2]} 38. Kg2 {[%clk 0:00:02.4]} 38... Qe4+ {[%clk
0:00:14.5]} 39. Kh3 {[%clk 0:00:03]} 1/2-1/2